fUSD/lending_fUSD_20250923
["ID","MTS","AMOUNT","RATE_DAILY","PERIOD"]
[387250209,1758664417272,-618.32,0.00028219,3]
[387250210,1758664417281,-458.91,0.00028219,3]
[387250211,1758664417291,-657.58,0.00028219,3]
[387250212,1758664417300,-400.0,0.00028219,3]
[387250213,1758664417309,-1848.91,0.00028219,3]
[387250214,1758664417318,-1506.02,0.00028219,3]
[387250215,1758664417329,-477.74,0.00028219,3]
[387250216,1758664417339,-400.0,0.00028219,3]
[387250217,1758664417348,-514.97,0.00028219,3]
[387250218,1758664417357,-400.0,0.00028219,3]
[387250219,1758664417366,-400.0,0.00028219,3]
[387250220,1758664417375,-1395.95,0.00028219,3]
[387250221,1758664417384,-403.38899969,0.00028219,3]
[387250222,1758664417394,-400.0,0.00028219,3]
[387250223,1758664417403,-1575.42,0.00028219,3]
[387250224,1758664417413,-1347.82,0.00028219,3]
[387250225,1758664417423,-400.0,0.00028219,3]
[387250226,1758664417432,-1495.51,0.00028219,3]
[387250227,1758664417441,-525.32,0.00028219,3]
[387250228,1758664417451,-1907.27,0.00028219,3]
[387250229,1758664417461,-400.0,0.00028219,3]
[387250230,1758664417470,-1023.51,0.00028219,3]
[387250231,1758664417479,-432.69,0.00028219,3]
[387250232,1758664417489,-1351.02,0.00028219,3]
[387250233,1758664417497,-231.84384687,0.00028219,3]
[387250234,1758664417507,-880.27,0.00028219,3]
[387250235,1758664417517,-1903.53,0.00028219,3]
[387250236,1758664417526,-548.79,0.00028219,3]
[387250237,1758664417536,-786.35,0.00028219,3]
[387250238,1758664417545,-451.0,0.00028219,3]
[387250239,1758664417554,-702.83,0.00028219,3]
[387250240,1758664417564,-2096.52,0.00028219,3]
[387250241,1758664417574,-1019.97,0.00028219,3]
[387250242,1758664417583,-475.27,0.00028219,3]
[387250243,1758664417592,-696.03,0.00028219,3]
[387250244,1758664417601,-419.83,0.00028219,3]
[387250245,1758664417611,-529.1,0.00028219,3]
[387250246,1758664417620,-1931.45,0.00028219,3]
[387250247,1758664417630,-601.48,0.00028219,3]
[387250248,1758664417639,-2252.15,0.00028219,3]
[387250249,1758664417649,-450.0,0.00028219,3]
[387250250,1758664417659,-536.36,0.00028219,3]
[387250251,1758664417668,-516.75,0.00028219,3]
[387250252,1758664417678,-2161.44,0.00028219,3]
[387250253,1758664417688,-620.93,0.00028219,3]
[387250254,1758664417698,-803.72,0.00028219,3]
[387250255,1758664417707,-2098.36,0.00028219,3]
[387250256,1758664417716,-1607.31,0.00028219,3]
[387250257,1758664417728,-3658.05,0.00028219,3]
[387250258,1758664417738,-1788.33,0.00028219,3]
[387250259,1758664417748,-998.12,0.00028219,3]
[387250260,1758664417757,-1550.42,0.00028219,3]
[387250261,1758664417767,-1221.01,0.00028219,3]
[387250262,1758664417776,-1421.09,0.00028219,3]
[387250263,1758664417786,-1581.33,0.00028219,3]
[387250264,1758664417795,-1796.87,0.00028219,3]
[387250265,1758664417804,-510.18,0.00028219,3]
[387250266,1758664417813,-515.25,0.00028219,3]
[387250267,1758664417822,-400.0,0.00028219,3]
[387250268,1758664417832,-1366.95,0.00028219,3]
[387250269,1758664417841,-1983.1,0.00028219,3]
[387250270,1758664417851,-287.96588769,0.00028219,3]
[387250271,1758664417860,-566.08,0.00028219,3]
[387250272,1758664417869,-405.04354866,0.00028219,3]
[387250273,1758664417878,-1644.62,0.00028219,3]
[387250274,1758664417888,-703.73,0.00028219,3]
[387250275,1758664417897,-712.53,0.00028219,3]
[387250276,1758664417907,-421.65,0.00028219,3]
[387250277,1758664417916,-838.91,0.00028219,3]
[387250278,1758664417925,-400.0,0.00028219,3]
[387250279,1758664417934,-1691.7,0.00028219,3]
[387250280,1758664417944,-1746.85,0.00028219,3]
[387250281,1758664417953,-586.14,0.00028219,3]
[387250282,1758664417962,-2088.64,0.00028219,3]
[387250283,1758664417971,-400.0,0.00028219,3]
[387250284,1758664417981,-1208.42,0.00028219,3]
[387250285,1758664417990,-706.04,0.00028219,3]
[387250286,1758664417999,-1530.19,0.00028219,3]
[387250287,1758664418008,-12997.44,0.00028219,3]
[387250288,1758664418018,-2130.52,0.00028219,3]
[387250289,1758664418027,-2924.19,0.00028219,3]
[387250290,1758664418037,-1462.57,0.00028219,3]
[387250291,1758664418046,-1005.85,0.00028219,3]
[387250292,1758664418055,-7446.15,0.00028219,3]
[387250293,1758664418065,-621.18,0.00028219,3]
[387250294,1758664418074,-1544.2,0.00028219,3]
[387250295,1758664418083,-644.91,0.00028219,3]
[387250296,1758664418092,-613.5,0.00028219,3]
[387250297,1758664418101,-644.94,0.00028219,3]
[387250298,1758664418110,-924.07,0.00028219,3]
[387250299,1758664418119,-413.72,0.00028219,3]
[387250300,1758664418129,-1218.93,0.00028219,3]
[387250301,1758664418138,-472.05,0.00028219,3]
[387250302,1758664418147,-525.7,0.00028219,3]
[387250303,1758664418156,-400.0,0.00028219,3]
[387250304,1758664418166,-431.76,0.00028219,3]
[387250305,1758664418175,-964.09,0.00028219,3]
[387250306,1758664418184,-501.11,0.00028219,3]
[387250307,1758664418192,-523.06,0.00028219,3]
[387250308,1758664418201,-2926.65,0.00028219,3]
[387250309,1758664418210,-400.0,0.00028219,3]
[387250310,1758664418220,-1583.89,0.00028219,3]
[387250311,1758664418228,-684.39,0.00028219,3]
[387250312,1758664418237,-1089.09,0.00028219,3]
[387250313,1758664418246,-400.0,0.00028219,3]
[387250314,1758664418255,-453.77,0.00028219,3]
[387250315,1758664418264,-564.83,0.00028219,3]
[387250316,1758664418274,-814.85,0.00028219,3]
[387250317,1758664418283,-10315.68,0.00028219,3]
[387250318,1758664418292,-873.79,0.00028219,3]
[387250319,1758664418301,-548.44,0.00028219,3]
[387250320,1758664418311,-1681.09,0.00028219,3]
[387250321,1758664418319,-478.24,0.00028219,3]
[387250322,1758664418328,-1081.32,0.00028219,3]
[387250323,1758664418337,-490.24,0.00028219,3]
[387250324,1758664418346,-1874.55,0.00028219,3]
[387250325,1758664418355,-710.95,0.00028219,3]
[387250326,1758664418363,-852.97,0.00028219,3]
[387250327,1758664418372,-895.27,0.00028219,3]
[387250328,1758664418381,-532.39,0.00028219,3]
[387250329,1758664418390,-1448.24,0.00028219,3]
[387250330,1758664418399,-677.14,0.00028219,3]
[387250331,1758664418409,-2056.2,0.00028219,3]
[387250332,1758664418420,-443.95,0.00028219,3]
[387250333,1758664418429,-1804.22,0.00028219,3]
[387250334,1758664418438,-1886.51,0.00028219,3]
[387250335,1758664418449,-1527.7,0.00028219,3]
[387250336,1758664418460,-1803.32,0.00028219,3]
[387250337,1758664418470,-1120.28,0.00028219,3]
[387250338,1758664418480,-517.83,0.00028219,3]
[387250339,1758664418491,-400.0,0.00028219,3]
[387250340,1758664418501,-400.0,0.00028219,3]
[387250341,1758664418511,-524.16,0.00028219,3]
[387250342,1758664418520,-2362.16,0.00028219,3]
[387250343,1758664418530,-3343.32,0.00028219,3]
[387250344,1758664418539,-1564.43,0.00028219,3]
[387250345,1758664418548,-482.02,0.00028219,3]
[387250346,1758664418558,-2055.82,0.00028219,3]
[387250347,1758664418567,-400.0,0.00028219,3]
[387250348,1758664418577,-485.4,0.00028219,3]
[387250349,1758664418586,-2920.55,0.00028219,3]
[387250350,1758664418595,-1036.13,0.00028219,3]
[387250351,1758664418603,-3270.38,0.00028219,3]
[387250352,1758664418613,-542.94,0.00028219,3]
[387250353,1758664418622,-385.26892341,0.00028219,3]
[387250354,1758664418631,-2377.65,0.00028219,3]
[387250355,1758664418641,-1774.73,0.00028219,3]
[387250356,1758664418650,-4398.6,0.00028219,3]
[387250357,1758664418660,-1866.28,0.00028219,3]
[387250358,1758664418669,-400.0,0.00028219,3]
[387250359,1758664418678,-491.17,0.00028219,3]
[387250360,1758664418687,-1493.5,0.00028219,3]
[387250361,1758664418697,-441.23,0.00028219,3]
[387250362,1758664418706,-2733.93,0.00028219,3]
[387250363,1758664418716,-2206.4,0.00028219,3]
[387250364,1758664418725,-872.02,0.00028219,3]
[387250365,1758664418734,-566.5,0.00028219,3]
[387250366,1758664418743,-841.18,0.00028219,3]
[387250367,1758664418753,-1970.71,0.00028219,3]
[387250368,1758664418763,-400.0,0.00028219,3]
[387250369,1758664418772,-1182.93,0.00028219,3]
[387250370,1758664418781,-3675.81,0.00028219,3]
[387250371,1758664418791,-660.51,0.00028219,3]
[387250372,1758664418799,-469.2,0.00028219,3]
[387250373,1758664418812,-1466.11,0.00028219,3]
[387250374,1758664418822,-535.19,0.00028219,3]
[387250375,1758664418831,-515.64,0.00028219,3]
[387250376,1758664418840,-788.86,0.00028219,3]
[387250377,1758664418849,-1923.86,0.00028219,3]
[387250378,1758664418859,-493.51,0.00028219,3]
[387250379,1758664418869,-12445.83,0.00028219,3]
[387250380,1758664418878,-770.57,0.00028219,3]
[387250381,1758664418887,-681.58,0.00028219,3]
[387250382,1758664418896,-3103.88,0.00028219,3]
[387250383,1758664418905,-400.0,0.00028219,3]
[387250384,1758664418914,-1593.87,0.00028219,3]
[387250385,1758664418923,-1657.6,0.00028219,3]
[387250386,1758664418932,-1375.02,0.00028219,3]
[387250387,1758664418941,-2705.96,0.00028219,3]
[387250388,1758664418950,-4394.25,0.00028219,3]
[387250389,1758664418959,-498.24,0.00028219,3]
[387250390,1758664418968,-1354.9,0.00028219,3]
[387250391,1758664418977,-483.59,0.00028219,3]
[387250392,1758664418985,-1801.89,0.00028219,3]
[387250393,1758664418995,-2718.14,0.00028219,3]
[387250394,1758664419004,-400.0,0.00028219,3]
[387250395,1758664419013,-1525.42,0.00028219,3]
[387250396,1758664419023,-506.66,0.00028219,3]
[387250397,1758664419032,-616.12,0.00028219,3]
[387250398,1758664419041,-1080.71,0.00028219,3]
[387250399,1758664419051,-8925.42,0.00028219,3]
[387250400,1758664419060,-1946.95,0.00028219,3]
[387250401,1758664419069,-537.74,0.00028219,3]
[387250402,1758664419079,-693.58,0.00028219,3]
[387250403,1758664419088,-778.13,0.00028219,3]
[387250404,1758664419096,-6607.03,0.00028219,3]
[387250405,1758664419105,-1718.13,0.00028219,3]
[387250406,1758664419115,-1594.41,0.00028219,3]
[387250407,1758664419125,-1594.83,0.00028219,3]
[387250408,1758664419134,-487.88,0.00028219,3]
[387250409,1758664419144,-3295.49,0.00028219,3]
[387250410,1758664419153,-1328.48,0.00028219,3]
[387250411,1758664419162,-779.18,0.00028219,3]
[387250412,1758664419171,-2770.64,0.00028219,3]
[387250413,1758664419180,-720.33,0.00028219,3]
[387250414,1758664419190,-1145.93,0.00028219,3]
[387250415,1758664419199,-3077.98,0.00028219,3]
[387250416,1758664419208,-711.94,0.00028219,3]
[387250417,1758664419217,-560.56,0.00028219,3]
[387250418,1758664419226,-2609.15,0.00028219,3]
[387250419,1758664419235,-1583.84,0.00028219,3]
[387250420,1758664419243,-1532.57,0.00028219,3]
[387250421,1758664419252,-1601.89,0.00028219,3]
[387250422,1758664419261,-736.9,0.00028219,3]
[387250423,1758664419271,-470.81,0.00028219,3]
[387250424,1758664419280,-473.85,0.00028219,3]
[387250425,1758664419289,-2011.79,0.00028219,3]
[387250426,1758664419298,-444.2,0.00028219,3]
[387250427,1758664419307,-1424.75,0.00028219,3]
[387250428,1758664419316,-1854.54,0.00028219,3]
[387250429,1758664419325,-814.88,0.00028219,3]
[387250430,1758664419334,-746.48,0.00028219,3]
[387250431,1758664419343,-1011.39,0.00028219,3]
[387250432,1758664419352,-7260.11,0.00028219,3]
[387250433,1758664419362,-667.22,0.00028219,3]
[387250434,1758664419371,-2063.59,0.00028219,3]
[387250435,1758664419380,-821.38,0.00028219,3]
[387250436,1758664419389,-1885.78,0.00028219,3]
[387250437,1758664419398,-1320.39,0.00028219,3]
[387250438,1758664419408,-1989.15,0.00028219,3]
[387250439,1758664419421,-403.83,0.00028219,3]
[387250440,1758664419430,-400.0,0.00028219,3]
[387250441,1758664419440,-400.0,0.00028219,3]
[387250442,1758664419448,-723.28,0.00028219,3]
[387250443,1758664419459,-1086.66,0.00028219,3]
[387250444,1758664419467,-561.18,0.00028219,3]
[387250445,1758664419477,-1260.0,0.00028219,3]
[387250446,1758664419487,-3598.37,0.00028219,3]
[387250447,1758664419497,-502.26,0.00028219,3]
[387250448,1758664419506,-1474.59,0.00028219,3]
[387250449,1758664419516,-2702.29,0.00028219,3]
[387250450,1758664419525,-1721.72,0.00028219,3]
[387250451,1758664419534,-506.33,0.00028219,3]
[387250452,1758664419543,-400.0,0.00028219,3]
[387250453,1758664419553,-1424.01,0.00028219,3]
[387250454,1758664419562,-670.32,0.00028219,3]
[387250455,1758664419571,-1420.11,0.00028219,3]
[387250456,1758664419581,-233.35360251,0.00028219,3]
[387250457,1758664419590,-1620.58,0.00028219,3]
[387250458,1758664419600,-1056.56,0.00028219,3]
[387250459,1758664419610,-400.0,0.00028219,3]
[387250460,1758664419619,-1331.6,0.00028219,3]
[387250461,1758664419628,-1563.82,0.00028219,3]
[387250462,1758664419638,-2954.78,0.00028219,3]
[387250463,1758664419647,-749.44,0.00028219,3]
[387250464,1758664419656,-760.02,0.00028219,3]
[387250465,1758664419665,-1966.97,0.00028219,3]
[387250466,1758664419674,-1527.26,0.00028219,3]
[387250467,1758664419683,-1062.51,0.00028219,3]
[387250468,1758664419692,-4579.98,0.00028219,3]
[387250469,1758664419702,-655.81,0.00028219,3]
[387250470,1758664419711,-3361.37,0.00028219,3]
[387250471,1758664419720,-691.42,0.00028219,3]
[387250472,1758664419729,-400.0,0.00028219,3]
[387250473,1758664419738,-588.0,0.00028219,3]
[387250474,1758664419748,-2353.38,0.00028219,3]
[387250475,1758664419757,-426.64,0.00028219,3]
[387250476,1758664419767,-1342.02,0.00028219,3]
[387250477,1758664419776,-891.93,0.00028219,3]
[387250478,1758664419785,-836.0,0.00028219,3]
[387250479,1758664419795,-400.0,0.00028219,3]
[387250480,1758664419804,-11455.47,0.00028219,3]
[387250481,1758664419813,-2297.98,0.00028219,3]
[387250482,1758664419823,-557.1,0.00028219,3]
[387250483,1758664419832,-430.82,0.00028219,3]
[387250484,1758664419843,-2944.68,0.00028219,3]
[387250485,1758664419854,-2148.78,0.00028219,3]
[387250486,1758664419864,-1798.01,0.00028219,3]
[387250487,1758664419874,-984.5,0.00028219,3]
[387250488,1758664419883,-400.0,0.00028219,3]
[387250489,1758664419893,-400.0,0.00028219,3]
[387250490,1758664419902,-8056.28,0.00028219,3]
[387250491,1758664419912,-400.0,0.00028219,3]
[387250492,1758664419922,-400.0,0.00028219,3]
[387250493,1758664419931,-1120.22,0.00028219,3]
[387250494,1758664419941,-1488.78,0.00028219,3]
[387250495,1758664419950,-2673.31,0.00028219,3]
[387250496,1758664419959,-400.0,0.00028219,3]
[387250497,1758664419969,-1898.09,0.00028219,3]
[387250498,1758664419979,-403.19,0.00028219,3]
[387250499,1758664419988,-2196.12,0.00028219,3]
[387250500,1758664419997,-1160.52,0.00028219,3]
[387250501,1758664420007,-4427.59,0.00028219,3]
[387250502,1758664420017,-736.09,0.00028219,3]
[387250503,1758664420027,-509.42,0.00028219,3]
[387250504,1758664420036,-1729.78,0.00028219,3]
[387250505,1758664420047,-858.26,0.00028219,3]
[387250506,1758664420057,-944.83,0.00028219,3]
[387250507,1758664420067,-2115.52,0.00028219,3]
[387250508,1758664420077,-523.04,0.00028219,3]
[387250509,1758664420087,-1974.89,0.00028219,3]
[387250510,1758664420096,-1946.73,0.00028219,3]
[387250511,1758664420106,-590.58,0.00028219,3]
[387250512,1758664420116,-2168.16,0.00028219,3]
[387250513,1758664420125,-1720.08,0.00028219,3]
[387250514,1758664420135,-1479.38,0.00028219,3]
[387250515,1758664420144,-543.91,0.00028219,3]
[387250516,1758664420154,-570.83,0.00028219,3]
[387250517,1758664420163,-3204.79,0.00028219,3]
[387250518,1758664420172,-1290.76,0.00028219,3]
[387250519,1758664420181,-466.33,0.00028219,3]
[387250520,1758664420191,-727.07,0.00028219,3]
[387250521,1758664420200,-633.05,0.00028219,3]
[387250522,1758664420209,-400.0,0.00028219,3]
[387250523,1758664420218,-413.88,0.00028219,3]
[387250524,1758664420227,-1323.54,0.00028219,3]
[387250525,1758664420236,-505.54,0.00028219,3]
[387250526,1758664420246,-654.93,0.00028219,3]
[387250527,1758664420255,-760.67,0.00028219,3]
[387250528,1758664420265,-1733.39,0.00028219,3]
[387250529,1758664420274,-2310.41,0.00028219,3]
[387250530,1758664420284,-562.75,0.00028219,3]
[387250531,1758664420293,-488.62,0.00028219,3]
[387250532,1758664420302,-2523.28,0.00028219,3]
[387250533,1758664420311,-1966.27,0.00028219,3]
[387250534,1758664420321,-551.29,0.00028219,3]
[387250535,1758664420330,-1174.67,0.00028219,3]
[387250536,1758664420340,-2604.18,0.00028219,3]
[387250537,1758664420349,-421.49,0.00028219,3]
[387250538,1758664420359,-400.0,0.00028219,3]
[387250539,1758664420368,-706.26,0.00028219,3]
[387250540,1758664420377,-3628.11,0.00028219,3]
[387250541,1758664420387,-565.31,0.00028219,3]
[387250542,1758664420396,-2276.88,0.00028219,3]
[387250543,1758664420406,-1829.63,0.00028219,3]
[387250544,1758664420420,-2647.87,0.00028219,3]
[387250545,1758664420429,-2516.63,0.00028219,3]
[387250546,1758664420438,-1595.55,0.00028219,3]
[387250547,1758664420448,-478.70125012,0.00028219,3]
[387250548,1758664420459,-1399.27,0.00028219,3]
[387250549,1758664420468,-3130.39,0.00028219,3]
[387250550,1758664420478,-4362.99,0.00028219,3]
[387250551,1758664420487,-1323.37,0.00028219,3]
[387250552,1758664420498,-435.62,0.00028219,3]
[387250553,1758664420507,-2164.69,0.00028219,3]
[387250554,1758664420517,-410.88,0.00028219,3]
[387250555,1758664420526,-554.53,0.00028219,3]
[387250556,1758664420536,-2696.65,0.00028219,3]
[387250557,1758664420545,-400.0,0.00028219,3]
[387250558,1758664420555,-400.0,0.00028219,3]
[387250559,1758664420564,-1822.61,0.00028219,3]
[387250560,1758664420574,-2557.76,0.00028219,3]
[387250561,1758664420583,-2080.13,0.00028219,3]
[387250562,1758664420593,-7563.58,0.00028219,3]
[387250563,1758664420602,-2197.93,0.00028219,3]
[387250564,1758664420612,-547.88,0.00028219,3]
[387250565,1758664420622,-2360.32,0.00028219,3]
[387250566,1758664420631,-2254.46,0.00028219,3]
[387250567,1758664420640,-439.37,0.00028219,3]
[387250568,1758664420771,-3272.4,0.00028219,3]
[387250569,1758664420780,-2668.58,0.00028219,3]
[387250570,1758664420790,-413.35,0.00028219,3]
[387250571,1758664420799,-587.39,0.00028219,3]
[387250572,1758664420809,-1439.94,0.00028219,3]
[387250573,1758664420820,-1694.56,0.00028219,3]
[387250574,1758664420829,-877.79,0.00028219,3]
[387250575,1758664420839,-400.0,0.00028219,3]
[387250576,1758664420848,-400.0,0.00028219,3]
[387250577,1758664420858,-1910.92,0.00028219,3]
[387250578,1758664420868,-400.0,0.00028219,3]
[387250579,1758664420877,-2031.07,0.00028219,3]
[387250580,1758664420888,-784.22,0.00028219,3]
[387250581,1758664420898,-791.36,0.00028219,3]
[387250582,1758664420907,-400.0,0.00028219,3]
[387250583,1758664420916,-559.88,0.00028219,3]
[387250584,1758664420926,-976.72,0.00028219,3]
[387250585,1758664420935,-626.61,0.00028219,3]
[387250586,1758664420945,-4896.65,0.00028219,3]
[387250587,1758664420954,-1175.49,0.00028219,3]
[387250588,1758664420963,-400.0,0.00028219,3]
[387250589,1758664420972,-2758.07,0.00028219,3]
[387250590,1758664420982,-1205.82,0.00028219,3]
[387250591,1758664420991,-1169.14,0.00028219,3]
[387250592,1758664421001,-2495.95,0.00028219,3]
[387250593,1758664421010,-400.0,0.00028219,3]
[387250594,1758664421020,-1595.32,0.00028219,3]
[387250595,1758664421030,-1049.38,0.00028219,3]
[387250596,1758664421039,-685.44,0.00028219,3]
[387250597,1758664421048,-4079.21,0.00028219,3]
[387250598,1758664421058,-400.0,0.00028219,3]
[387250599,1758664421067,-1207.96,0.00028219,3]
[387250600,1758664421077,-2510.3,0.00028219,3]
[387250601,1758664421086,-1678.52,0.00028219,3]
[387250602,1758664421096,-16706.02,0.00028219,3]
[387250603,1758664421105,-400.0,0.00028219,3]
[387250604,1758664421114,-1890.53,0.00028219,3]
[387250605,1758664421123,-400.0,0.00028219,3]
[387250606,1758664421133,-689.28,0.00028219,3]
[387250607,1758664421142,-4251.49,0.00028219,3]
[387250608,1758664421151,-720.98,0.00028219,3]
[387250609,1758664421161,-431.21039354,0.00028219,3]
[387250610,1758664421170,-2074.52,0.00028219,3]
[387250611,1758664421180,-400.0,0.00028219,3]
[387250612,1758664421189,-3330.98,0.00028219,3]
[387250613,1758664421199,-487.18,0.00028219,3]
[387250614,1758664421209,-425.07,0.00028219,3]
[387250615,1758664421218,-605.39,0.00028219,3]
[387250616,1758664421227,-400.00839594,0.00028219,3]
[387250617,1758664421236,-630.04,0.00028219,3]
[387250618,1758664421246,-507.22,0.00028219,3]
[387250619,1758664421255,-1822.56,0.00028219,3]
[387250620,1758664421265,-1189.77,0.00028219,3]
[387250621,1758664421274,-13418.14,0.00028219,3]
[387250622,1758664421283,-908.29,0.00028219,3]
[387250623,1758664421293,-752.17,0.00028219,3]
[387250624,1758664421303,-2046.35,0.00028219,3]
[387250625,1758664421312,-425.15,0.00028219,3]
[387250626,1758664421323,-472.22,0.00028219,3]
[387250627,1758664421335,-205.10317627,0.00028219,3]
[387250628,1758664421345,-6000.0,0.00028234,15]
[387250629,1758664421354,-3000.0,0.0002826,5]
[387250630,1758664421364,-800.0,0.0002826,5]
[387250631,1758664421374,-14253.46763913,0.00028279,9]
[387250632,1758664421383,-1233.0,0.00028298,2]
[387250633,1758664421392,-434.0,0.00028298,2]
[387250634,1758664421402,-25389.96,0.000283,7]
[387250635,1758664421415,-431.83,0.00028361,3]
[387250636,1758664421424,-1219.72,0.00028361,3]
[387250637,1758664421434,-400.0,0.00028361,3]
[387250638,1758664421444,-976.0074624,0.00028409,2]
[387250639,1758664421456,-2728.75867,0.0002841,2]
[387250640,1758664421466,-152.0,0.00028418,9]
[387250641,1758664421475,-947.43,0.00028451,3]
[387250642,1758664421485,-601.48204136,0.0002847,2]
[387250643,1758664421495,-403.15,0.00028493,3]
[387250644,1758664421505,-403.15,0.00028493,3]
[387250645,1758664421515,-1219.54,0.00028493,3]
[387250646,1758664421524,-422.15,0.00028493,3]
[387250647,1758664421533,-400.0,0.00028493,3]
[387250648,1758664421542,-722.3,0.00028493,3]
[387250649,1758664421552,-277.70783378,0.00028493,3]
[387250650,1758664421562,-425.13,0.00028493,3]
[387250651,1758664421571,-400.0,0.00028493,3]
[387250652,1758664421582,-463.61,0.00028493,3]
[387250653,1758664421591,-400.0,0.00028493,3]
[387250654,1758664421601,-400.81,0.00028493,3]
[387250655,1758664421611,-606.67,0.00028493,3]
[387250656,1758664421620,-558.51,0.00028493,3]
[387250657,1758664421629,-400.0,0.00028493,3]
[387250658,1758664421638,-517.79,0.00028493,3]
[387250659,1758664421648,-410.1,0.00028493,3]
[387250660,1758664421658,-513.24,0.00028493,3]
[387250661,1758664421668,-864.38,0.00028493,3]
[387250662,1758664421677,-334.90942396,0.00028493,3]
[387250663,1758664421686,-400.0,0.00028493,3]
[387250664,1758664421697,-400.0,0.00028493,3]
[387250665,1758664421706,-400.0,0.00028493,3]
[387250666,1758664421716,-400.0,0.00028493,3]
[387250667,1758664421725,-400.0,0.00028493,3]
[387250668,1758664421734,-499.32,0.00028493,3]
[387250669,1758664421743,-400.0,0.00028493,3]
[387250670,1758664421753,-400.0,0.00028493,3]
[387250671,1758664421763,-701.54,0.00028493,3]
[387250672,1758664421773,-568.0,0.00028493,3]
[387250673,1758664421782,-761.54,0.00028493,3]
[387250674,1758664421791,-448.15,0.00028493,3]
[387250675,1758664421801,-550.19,0.00028493,3]
[387250676,1758664421810,-527.27,0.00028493,3]
[387250677,1758664421819,-400.0,0.00028493,3]
[387250678,1758664421828,-400.0,0.00028493,3]
[387250679,1758664421838,-400.0,0.00028493,3]
[387250680,1758664421847,-433.43,0.00028493,3]
[387250681,1758664421856,-400.0,0.00028493,3]
[387250682,1758664421866,-1431.46,0.00028493,3]
[387250683,1758664421874,-400.0,0.00028493,3]
[387250684,1758664421884,-888.36,0.00028493,3]
[387250685,1758664421893,-400.0,0.00028493,3]
[387250686,1758664421902,-500.78,0.00028493,3]
[387250687,1758664421911,-400.0,0.00028493,3]
[387250688,1758664421921,-400.0,0.00028493,3]
[387250689,1758664421930,-414.62,0.00028493,3]
[387250690,1758664421939,-415.37,0.00028493,3]
[387250691,1758664421949,-400.0,0.00028493,3]
[387250692,1758664421958,-851.65,0.00028493,3]
[387250693,1758664421967,-469.22,0.00028493,3]
[387250694,1758664421977,-514.2,0.00028493,3]
[387250695,1758664421986,-696.09,0.00028493,3]
[387250696,1758664421996,-942.3,0.00028493,3]
[387250697,1758664422006,-401.11,0.00028493,3]
[387250698,1758664422016,-401.11,0.00028493,3]
[387250699,1758664422025,-426.89,0.00028493,3]
[387250700,1758664422035,-400.0,0.00028493,3]
[387250701,1758664422044,-483.66,0.00028493,3]
[387250702,1758664422054,-700.73,0.00028493,3]
[387250703,1758664422063,-1218.15,0.00028493,3]
[387250704,1758664422072,-432.38,0.00028493,3]
[387250705,1758664422082,-400.0,0.00028493,3]
[387250706,1758664422091,-413.32,0.00028493,3]
[387250707,1758664422100,-600.39,0.00028493,3]
[387250708,1758664422109,-267.9619657,0.00028493,3]